[Event "47th GRE-chT 2019"]
[Site "Patra"]
[Date "2019.07.02"]
[Round "1.16"]
[White "Pasoglou, Ekaterini"]
[Black "Louka, Marianthi"]
[Result "1-0"]
[ECO "D05"]
[WhiteElo "1804"]
[BlackElo "1456"]
[Annotator "NA"]
[PlyCount "69"]
[EventDate "2019.07.02"]
[EventCountry "GRE"]
[SourceTitle "playchess.com"]
[Source "ChessBase"]
[SourceQuality "1"]
[TimeControl "5400+30"]

1. d4 {[%emt 0:00:00]} Nf6 {[%emt 0:00:00]} 2. Nf3 {[%emt 0:00:00]} e6 {[%emt 0:00:00]} 3. e3 {[%emt 0:00:35]} d5 {[%emt 0:00:00]} 4. Bd3 {[%emt 0:00:26]} c5 {[%emt 0:00:00]} 5. b3 {[%emt 0:00:26]} Bd6 {[%emt 0:00:23]} 6. Bb2 {[%emt 0:00:33]} O-O {[%emt 0:01:00]} 7. Nbd2 {[%emt 0:03:15]} b6 {[%emt 0:00:17]} 8. O-O {[%emt 0:00:18]} Bb7 {[%emt 0:10:27]} 9. c4 {[%emt 0:08:58]} cxd4 {[%emt 0:00:54]} 10. exd4 {[%emt 0:06:49]} Nc6 {[%emt 0:15:43]} 11. a3 {[%emt 0:14:23]} a5 {[%emt 0:27:52]} 12. Qe2 {[%emt 0:24:02]} Bc7 {[%emt 0:06:19]} 13. Rac1 {[%emt 0:08:06]} dxc4 {[%emt 0:00:59]} 14. bxc4 {[%emt 0:01:01]} Ne7 {[%emt 0:04:12]} 15. Ne5 {[%emt 0:04:58]} Ng6 {[%emt 0:14:54]} 16. f4 {[%emt 0:04:15]} Nh4 {[%emt 0:07:35]} 17. g3 {[%emt 0:02:52]} Nf5 {[%emt 0:01:01]} 18. Ndf3 {[%emt 0:09:08]} h5 {[%emt 0:03:02]} 19. Rfd1 {[%emt 0:01:09]} Nh6 {[%emt 0:00:42]} 20. Ng5 {[%emt 0:04:50]} Nfg4 {[%emt 0:01:54]} 21. h3 {[%emt 0:01:05]} Nxe5 {[%emt 0:00:05]} 22. dxe5 {[%emt 0:00:14]} Qe7 {[%emt 0:01:54]} 23. Bh7+ {[%emt 0:00:06]} Kh8 {[%emt 0:00:26]} 24. Qxh5 {[%emt 0:00:07]} Qc5+ {[%emt 0:00:15]} 25. Bd4 {[%emt 0:00:05]} Qxa3 {[%emt 0:00:52]} 26. Rc3 {[%emt 0:01:33]} Qb2 {[%emt 0:00:36]} 27. Be4 {[%emt 0:02:30]} Bxe4 {[%emt 0:00:04]} 28. Nxe4 {[%emt 0:00:20]} Rad8 {[%emt 0:00:34]} 29. Rcd3 {[%emt 0:01:03]} Qb4 {[%emt 0:00:07]} 30. g4 {[%emt 0:00:40]} Kg8 {[%emt 0:01:49]} 31. f5 {[%emt 0:01:01]} Rxd4 {[%emt 0:00:21]} 32. Rxd4 {[%emt 0:00:03]} Bxe5 {[%emt 0:00:28]} 33. Rd8 {[%emt 0:01:03]} Qb2 {[%emt 0:00:26]} 34. R8d2 {[%emt 0:00:15]} Qb4 {[%emt 0:00:13]} 35. f6 {[%emt 0:01:21]} 1-0

[Event "47th GRE-chT 2019"]
[Site "Patra"]
[Date "2019.07.02"]
[Round "1.16"]
[White "Spiliopoulou, Maria-Konstantina"]
[Black "Apostolidou, Eleni"]
[Result "0-1"]
[ECO "C68"]
[WhiteElo "1105"]
[BlackElo "1340"]
[Annotator "NA"]
[PlyCount "68"]
[EventDate "2019.07.02"]
[EventCountry "GRE"]
[SourceTitle "playchess.com"]
[Source "ChessBase"]
[SourceQuality "1"]
[TimeControl "5400+30"]

1. e4 e5 2. Nf3 Nc6 3. Bb5 a6 4. Bxc6 dxc6 5. d4 exd4 6. Qxd4 Qxd4 7. Nxd4 Bd7 8. Be3 O-O-O 9. Nd2 Bd6 10. h3 Re8 11. f4 f6 12. O-O-O Nh6 13. Rde1 c5 14. N4b3 b6 15. Rhf1 Bc6 16. Bg1 Re6 17. Bh2 Rhe8 18. f5 Nxf5 19. Rxf5 Bxh2 20. Rf3 Bd6 21. Rfe3 f5 22. e5 Rxe5 23. Nc4 Rxe3 24. Rxe3 Bf4 25. Kd2 Bxe3+ 26. Nxe3 f4 27. Nf5 g6 28. Nh4 g5 29. Nf5 Bxg2 30. h4 gxh4 31. Nxh4 f3 32. Nxf3 Bxf3 33. Kc1 h5 34. Nd2 Re1# 0-1

[Event "47th GRE-chT 2019"]
[Site "Patra"]
[Date "2019.07.02"]
[Round "1.17"]
[White "Daniilidi, Dimitra Lydia"]
[Black "Strati, Betty - Anna"]
[Result "1/2-1/2"]
[ECO "C01"]
[WhiteElo "1299"]
[BlackElo "1710"]
[Annotator "NA"]
[PlyCount "80"]
[EventDate "2019.07.02"]
[EventCountry "GRE"]
[SourceTitle "playchess.com"]
[Source "ChessBase"]
[SourceQuality "1"]
[TimeControl "5400+30"]

1. e4 {[%emt 0:00:00]} e6 {[%emt 0:00:00]} 2. d4 {[%emt 0:00:00]} d5 {[%emt 0:00:00]} 3. exd5 {[%emt 0:00:00]} exd5 {[%emt 0:00:00]} 4. Bd3 {[%emt 0:00:00]} Bd6 {[%emt 0:00:04]} 5. Nf3 {[%emt 0:00:15]} Ne7 {[%emt 0:00:41]} 6. Nbd2 {[%emt 0:00:54]} O-O {[%emt 0:01:20]} 7. O-O {[%emt 0:01:32]} Bf5 {[%emt 0:01:45]} 8. Bxf5 {[%emt 0:01:53]} Nxf5 {[%emt 0:00:10]} 9. Re1 {[%emt 0:01:31]} Nd7 {[%emt 0:13:28]} 10. Nf1 {[%emt 0:02:02]} Nf6 {[%emt 0:06:24]} 11. Qd3 {[%emt 0:09:36]} Qc8 {[%emt 0:14:59]} 12. Ng3 {[%emt 0:03:46]} Nxg3 {[%emt 0:07:12]} 13. hxg3 {[%emt 0:00:11]} Re8 {[%emt 0:06:33]} 14. Ne5 {[%emt 0:10:06]} Ne4 {[%emt 0:05:22]} 15. Qb3 {[%emt 0:29:15]} c6 {[%emt 0:08:50]} 16. Rxe4 {[%emt 0:13:08]} f6 {[%emt 0:08:02]} 17. Bf4 {[%emt 0:06:31]} fxe5 {[%emt 0:06:20]} 18. Bxe5 {[%emt 0:02:32]} Qe6 {[%emt 0:06:17]} 19. Qxb7 {[%emt 0:01:11]} Qg6 {[%emt 0:03:41]} 20. Re2 {[%emt 0:05:07]} Bxe5 {[%emt 0:02:04]} 21. Rxe5 {[%emt 0:01:01]} Reb8 {[%emt 0:03:17]} 22. Qd7 {[%emt 0:01:35]} Rxb2 {[%emt 0:02:05]} 23. Re6 {[%emt 0:01:17]} Qf7 {[%emt 0:01:35]} 24. Qxf7+ {[%emt 0:00:28]} Kxf7 {[%emt 0:00:06]} 25. Rxc6 {[%emt 0:00:04]} Re8 {[%emt 0:01:07]} 26. Kf1 {[%emt 0:01:54]} Re4 {[%emt 0:00:58]} 27. Rc7+ {[%emt 0:01:06]} Kf6 {[%emt 0:00:29]} 28. Rxa7 {[%emt 0:00:12]} Rxc2 {[%emt 0:00:07]} 29. Re1 {[%emt 0:01:44]} Rxd4 {[%emt 0:00:20]} 30. Rae7 {[%emt 0:02:58]} Rxa2 {[%emt 0:00:19]} 31. R1e6+ {[%emt 0:00:20]} Kf5 {[%emt 0:00:29]} 32. Re5+ {[%emt 0:00:29]} Kf6 {[%emt 0:00:33]} 33. R5e6+ {[%emt 0:00:17]} Kf5 {[%emt 0:00:24]} 34. Re5+ {[%emt 0:00:26]} Kg6 {[%emt 0:01:17]} 35. R7e6+ {[%emt 0:00:29]} Kf7 {[%emt 0:00:23]} 36. Re7+ {[%emt 0:00:15]} Kf6 {[%emt 0:00:33]} 37. R5e6+ {[%emt 0:00:43]} Kf5 {[%emt 0:00:06]} 38. Re5+ {[%emt 0:00:10]} Kf6 {[%emt 0:00:23]} 39. R5e6+ {[%emt 0:00:36]} Kf5 {[%emt 0:00:06]} 40. Re5+ {[%emt 0:00:00]} Kf6 {[%emt 0:00:00]} 1/2-1/2

[Event "47th GRE-chT 2019"]
[Site "Patra"]
[Date "2019.07.02"]
[Round "1.18"]
[White "Kazakos, Markos"]
[Black "Thomaidis, Panagiotis Georgios"]
[Result "1-0"]
[ECO "A30"]
[WhiteElo "2069"]
[BlackElo "1465"]
[Annotator "NA"]
[PlyCount "97"]
[EventDate "2019.07.02"]
[EventCountry "GRE"]
[SourceTitle "playchess.com"]
[Source "ChessBase"]
[SourceQuality "1"]
[TimeControl "5400+30"]

1. Nf3 {[%emt 0:00:00]} Nf6 {[%emt 0:00:57]} 2. g3 {[%emt 0:00:00]} b6 {[%emt 0:00:29]} 3. Bg2 {[%emt 0:00:02]} Bb7 {[%emt 0:00:45]} 4. d4 {[%emt 0:00:20]} e6 {[%emt 0:00:14]} 5. O-O {[%emt 0:03:24]} c5 {[%emt 0:01:45]} 6. c4 {[%emt 0:11:30]} Be7 {[%emt 0:02:04]} 7. Nc3 {[%emt 0:10:50]} d6 {[%emt 0:03:03]} 8. dxc5 {[%emt 0:07:29]} bxc5 {[%emt 0:08:47]} 9. Bf4 {[%emt 0:09:22]} Nh5 {[%emt 0:07:20]} 10. Be3 {[%emt 0:02:08]} O-O {[%emt 0:03:15]} 11. Qc2 {[%emt 0:04:07]} Nf6 {[%emt 0:03:57]} 12. Rfd1 {[%emt 0:08:17]} Qb6 {[%emt 0:25:28]} 13. h3 {[%emt 0:10:32]} Nc6 {[%emt 0:05:03]} 14. a3 {[%emt 0:09:57]} Na5 {[%emt 0:23:18]} 15. Nd2 {[%emt 0:06:17]} Bxg2 {[%emt 0:00:05]} 16. Kxg2 {[%emt 0:07:11]} Qc6+ {[%emt 0:00:52]} 17. Kg1 {[%emt 0:00:56]} d5 {[%emt 0:02:37]} 18. cxd5 {[%emt 0:00:07]} exd5 {[%emt 0:01:56]} 19. Bg5 {[%emt 0:01:39]} h6 {[%emt 0:00:05]} 20. Bxf6 {[%emt 0:00:08]} Bxf6 {[%emt 0:00:37]} 21. e4 {[%emt 0:03:46]} d4 {[%emt 0:00:08]} 22. Nd5 {[%emt 0:00:57]} Rfc8 {[%emt 0:05:55]} 23. b4 {[%emt 0:01:25]} cxb4 {[%emt 0:00:07]} 24. Qxc6 {[%emt 0:00:50]} Nxc6 {[%emt 0:00:06]} 25. axb4 {[%emt 0:00:27]} a5 {[%emt 0:00:21]} 26. Nb6 {[%emt 0:00:40]} Nxb4 {[%emt 0:00:12]} 27. Nxc8 {[%emt 0:00:06]} Rxc8 {[%emt 0:00:16]} 28. Rxa5 {[%emt 0:00:46]} Nc6 {[%emt 0:00:21]} 29. Rc5 {[%emt 0:00:18]} Ne7 {[%emt 0:00:11]} 30. Rxc8+ {[%emt 0:00:06]} Nxc8 {[%emt 0:00:14]} 31. Nf3 {[%emt 0:01:06]} Nb6 {[%emt 0:00:18]} 32. e5 {[%emt 0:00:24]} Be7 {[%emt 0:00:26]} 33. Nxd4 {[%emt 0:00:29]} Nc4 {[%emt 0:00:21]} 34. Nc6 {[%emt 0:00:48]} Ba3 {[%emt 0:00:25]} 35. h4 {[%emt 0:00:13]} Bb2 {[%emt 0:00:55]} 36. f4 {[%emt 0:00:16]} Ne3 {[%emt 0:00:48]} 37. Rd8+ {[%emt 0:00:08]} Kh7 {[%emt 0:00:13]} 38. h5 {[%emt 0:00:31]} Nf5 {[%emt 0:00:21]} 39. Kg2 {[%emt 0:00:12]} Ne3+ {[%emt 0:00:00]} 40. Kf3 {[%emt 0:00:00]} Nc4 {[%emt 0:00:00]} 41. Rd7 {[%emt 0:00:00]} Kg8 {[%emt 0:00:00]} 42. Rd8+ {[%emt 0:00:00]} Kh7 {[%emt 0:00:00]} 43. Rf8 {[%emt 0:00:00]} Nd2+ {[%emt 0:00:00]} 44. Kg2 {[%emt 0:00:00]} Ne4 {[%emt 0:00:00]} 45. Rxf7 {[%emt 0:00:00]} Ba3 {[%emt 0:00:00]} 46. Nd8 {[%emt 0:00:00]} Nc5 {[%emt 0:00:00]} 47. e6 {[%emt 0:00:00]} Ne4 {[%emt 0:00:00]} 48. Nc6 {[%emt 0:00:00]} Nf6 {[%emt 0:00:00]} 49. e7 {[%emt 0:00:00]} 1-0

[Event "47th GRE-chT 2019"]
[Site "Patra"]
[Date "2019.07.02"]
[Round "1.18"]
[White "Loutragotis, Paraskevas Pantelei"]
[Black "Bardis, Harilaos-Panagiotis"]
[Result "0-1"]
[ECO "C12"]
[WhiteElo "1864"]
[BlackElo "1897"]
[Annotator "NA"]
[PlyCount "38"]
[EventDate "2019.07.02"]
[EventCountry "GRE"]
[SourceTitle "playchess.com"]
[Source "ChessBase"]
[SourceQuality "1"]
[TimeControl "5400+30"]

1. e4 {[%emt 0:00:00]} e6 {[%emt 0:01:06]} 2. d4 {[%emt 0:00:33]} d5 {[%emt 0:00:06]} 3. Nc3 {[%emt 0:00:10]} Nf6 {[%emt 0:00:10]} 4. Bg5 {[%emt 0:00:27]} Bb4 {[%emt 0:00:39]} 5. e5 {[%emt 0:00:51]} h6 {[%emt 0:00:05]} 6. Bd2 {[%emt 0:00:03]} Bxc3 {[%emt 0:00:07]} 7. Bxc3 {[%emt 0:01:26]} Ne4 {[%emt 0:00:07]} 8. Bb4 {[%emt 0:00:23]} c5 {[%emt 0:00:19]} 9. dxc5 {[%emt 0:00:22]} Nxf2 {[%emt 0:00:06]} 10. Qd2 {[%emt 0:05:54]} Nxh1 {[%emt 0:00:27]} 11. Nf3 {[%emt 0:00:23]} g5 {[%emt 0:01:07]} 12. Nd4 {[%emt 0:08:01]} g4 {[%emt 0:04:04]} 13. Nb5 {[%emt 0:01:35]} Nc6 {[%emt 0:10:05]} 14. Nd6+ {[%emt 0:02:54]} Kf8 {[%emt 0:00:04]} 15. Qf4 {[%emt 0:04:11]} Rh7 {[%emt 0:00:14]} 16. Bd3 {[%emt 0:01:24]} Rg7 {[%emt 0:00:23]} 17. Bd2 {[%emt 0:02:16]} Qg5 {[%emt 0:07:20]} 18. O-O-O {[%emt 0:02:47]} Qxf4 {[%emt 0:00:39]} 19. Bxf4 {[%emt 0:00:05]} Nf2 {[%emt 0:00:04]} 0-1

[Event "47th GRE-chT 2019"]
[Site "Patra"]
[Date "2019.07.02"]
[Round "1.19"]
[White "Liakos, Christos - Konstanti"]
[Black "Tsarsitalidis, Konstantinos"]
[Result "0-1"]
[ECO "B23"]
[WhiteElo "1479"]
[BlackElo "2001"]
[Annotator "NA RC"]
[PlyCount "126"]
[EventDate "2019.07.02"]
[EventCountry "GRE"]
[SourceTitle "playchess.com"]
[Source "ChessBase"]
[SourceQuality "1"]
[TimeControl "5400+30"]

1. e4 {[%emt 0:00:00]} c5 {[%emt 0:00:00]} 2. Nc3 {[%emt 0:00:09]} a6 {[%emt 0:00:00]} 3. f4 {[%emt 0:00:28]} b5 {[%emt 0:00:00]} 4. g3 {[%emt 0:00:30]} Bb7 {[%emt 0:00:00]} 5. Bg2 {[%emt 0:00:25]} e6 {[%emt 0:00:06]} 6. d3 {[%emt 0:00:36]} d5 {[%emt 0:03:57]} 7. Qe2 {[%emt 0:03:21] B23: Closed Sicilian: Lines without g3} d4 {[%emt 0:01:13]} 8. Nd1 {[%emt 0:00:21]} Nc6 {[%emt 0:05:42]} 9. Nf3 {[%emt 0:00:50]} Nf6 {[%emt 0:00:22]} 10. O-O {[%emt 0:00:58]} Be7 {[%emt 0:00:45]} 11. f5 $146 {[%emt 0:02:33]} ({Predecessor:} 11. Nf2 Qb6 12. a4 h6 13. h4 Qc7 14. Bh3 Nd7 15. axb5 axb5 16. Rxa8+ Bxa8 {0-1 (56) Sambuev,B (2524)-Kovalyov,A (2651) Edmonton 2018}) 11... e5 {[%emt 0:05:34]} 12. Ng5 {[%emt 0:02:51]} h6 {[%emt 0:04:43]} 13. Nh3 {[%emt 0:00:33]} h5 {[%emt 0:00:03]} 14. Ng5 {[%emt 0:02:17]} Qc7 {[%emt 0:14:09]} 15. a3 {[%emt 0:05:14]} Bd6 {[%emt 0:00:47]} 16. Kh1 {[%emt 0:07:57]} O-O-O {[%emt 0:00:52]} 17. Nf2 {[%emt 0:06:30]} Rdf8 {[%emt 0:01:35]} 18. Bd2 {[%emt 0:05:49]} Qe7 {[%emt 0:03:02]} 19. h3 {[%emt 0:05:03]} Kb8 {[%emt 0:02:20]} 20. c3 {[%emt 0:02:40]} g6 {[%emt 0:04:48]} 21. fxg6 {[%emt 0:02:32]} fxg6 {[%emt 0:00:10]} 22. a4 {[%emt 0:04:05]} Bc8 {[%emt 0:01:18]} 23. axb5 {[%emt 0:00:51]} axb5 {[%emt 0:00:07]} 24. Ra2 {[%emt 0:08:06]} Nh7 {[%emt 0:03:56]} 25. Nf3 {[%emt 0:03:16]} g5 {[%emt 0:02:53]} 26. Ne1 {[%emt 0:00:22]} Be6 {[%emt 0:02:21]} 27. c4 {[%emt 0:02:40]} g4 {[%emt 0:01:28]} 28. h4 {[%emt 0:00:19]} b4 {[%emt 0:00:59]} 29. b3 {[%emt 0:00:11]} Rf7 {[%emt 0:00:13]} 30. Qd1 {[%emt 0:01:36]} Bc8 {[%emt 0:02:00]} 31. Qa1 {[%emt 0:00:58]} Bb7 {[%emt 0:00:05]} 32. Kh2 {[%emt 0:02:18]} Rhf8 {[%emt 0:01:27]} 33. Bh6 {[%emt 0:00:47]} Rg8 {[%emt 0:00:17]} 34. Rb2 {[%emt 0:01:35]} Rg6 {[%emt 0:00:20]} 35. Bc1 {[%emt 0:01:06]} Rgf6 {[%emt 0:02:50]} 36. Qa2 {[%emt 0:02:22]} Qf8 {[%emt 0:02:43]} 37. Rc2 {[%emt 0:00:22]} Bc8 {[%emt 0:03:10]} 38. Kg1 {[%emt 0:03:06]} Qd8 {[%emt 0:03:22]} 39. Qa4 {[%emt 0:00:26]} Qb6 {[%emt 0:01:55]} 40. Qa2 {[%emt 0:00:00]} Ra7 {[%emt 0:00:00]} 41. Qb2 {[%emt 0:00:00]} Ra6 {[%emt 0:00:00]} 42. Nd1 {[%emt 0:00:00]} Qa7 {[%emt 0:00:00]} 43. Rxf6 {[%emt 0:00:00]} Nxf6 {[%emt 0:00:00]} 44. Rf2 {[%emt 0:00:00]} Ne8 {[%emt 0:00:00]} 45. Nc2 {[%emt 0:00:00]} Be6 {[%emt 0:00:00]} 46. Bh6 {[%emt 0:00:00]} Be7 {[%emt 0:00:00]} 47. Qb1 {[%emt 0:00:00]} Kc8 {[%emt 0:00:00]} 48. Nb2 {[%emt 0:00:00]} Na5 {[%emt 0:00:00]} 49. Nd1 {[%emt 0:00:00]} Bf6 {[%emt 0:00:00]} 50. Bf8 {[%emt 0:00:00]} Nb7 {[%emt 0:00:00]} 51. Nb2 {[%emt 0:00:00]} Qb6 {[%emt 0:00:00]} 52. Na4 {[%emt 0:00:00]} Qc7 {[%emt 0:00:00]} 53. Bf1 {[%emt 0:00:00]} Bd7 {[%emt 0:00:31]} 54. Nb2 {[%emt 0:00:00]} Qd8 {[%emt 0:02:49]} 55. Qc1 {[%emt 0:00:00]} Ng7 {[%emt 0:08:29]} 56. Bxg7 {[%emt 0:00:00]} Bxg7 {[%emt 0:00:05]} 57. Be2 {[%emt 0:06:34]} Bh6 {[%emt 0:01:43]} 58. Qb1 {[%emt 0:00:29]} Qa5 {[%emt 0:00:36]} 59. Bd1 $2 {[%emt 0:04:44]} (59. Rf1) 59... Qa2 $19 {[%emt 0:00:40]} 60. Qxa2 {[%emt 0:00:14]} Rxa2 {[%emt 0:00:05]} 61. Na4 {[%emt 0:00:17]} Bxa4 {[%emt 0:00:11]} 62. bxa4 {[%emt 0:00:14]} b3 {[%emt 0:00:05]} 63. Ne1 {[%emt 0:00:20]} Be3 {[%emt 0:00:04]} 0-1

[Event "47th GRE-chT 2019"]
[Site "Patra"]
[Date "2019.07.02"]
[Round "1.19"]
[White "Sidiropoulos, Vasilis"]
[Black "Vrailas, Marios"]
[Result "0-1"]
[ECO "B22"]
[WhiteElo "1479"]
[BlackElo "1285"]
[Annotator "NA"]
[PlyCount "72"]
[EventDate "2019.07.02"]
[EventCountry "GRE"]
[SourceTitle "playchess.com"]
[Source "ChessBase"]
[SourceQuality "1"]
[TimeControl "5400+30"]

1. e4 {[%emt 0:00:00]} c5 {[%emt 0:00:00]} 2. c3 {[%emt 0:00:00]} Nf6 {[%emt 0:00:31]} 3. e5 {[%emt 0:00:00]} Nd5 {[%emt 0:00:45]} 4. d4 {[%emt 0:00:00]} cxd4 {[%emt 0:03:36]} 5. Nf3 {[%emt 0:00:38]} e6 {[%emt 0:06:54]} 6. cxd4 {[%emt 0:02:23]} d6 {[%emt 0:06:30]} 7. a3 {[%emt 0:00:41]} Nc6 {[%emt 0:03:17]} 8. Bd3 {[%emt 0:00:13]} Be7 {[%emt 0:04:21]} 9. O-O {[%emt 0:00:24]} Bd7 {[%emt 0:12:22]} 10. Re1 {[%emt 0:07:02]} Rc8 {[%emt 0:05:19]} 11. Be4 {[%emt 0:21:20]} dxe5 {[%emt 0:04:15]} 12. dxe5 {[%emt 0:01:14]} Nb6 {[%emt 0:01:38]} 13. Qd3 {[%emt 0:04:38]} Qc7 {[%emt 0:04:57]} 14. Bf4 {[%emt 0:12:22]} h6 {[%emt 0:03:13]} 15. h3 {[%emt 0:08:34]} Na4 {[%emt 0:02:18]} 16. b4 {[%emt 0:02:53]} a5 {[%emt 0:10:44]} 17. Qb3 {[%emt 0:07:56]} b5 {[%emt 0:02:28]} 18. Rc1 {[%emt 0:05:47]} O-O {[%emt 0:05:09]} 19. Bxc6 {[%emt 0:05:03]} Bxc6 {[%emt 0:00:20]} 20. Nd4 {[%emt 0:00:21]} Qb7 {[%emt 0:00:47]} 21. Rxc6 {[%emt 0:03:06]} Rxc6 {[%emt 0:00:16]} 22. Nxc6 {[%emt 0:00:03]} Qxc6 {[%emt 0:00:07]} 23. bxa5 {[%emt 0:00:43]} Ra8 {[%emt 0:00:23]} 24. Bd2 {[%emt 0:02:56]} Bd8 {[%emt 0:01:36]} 25. Qd3 {[%emt 0:05:22]} Bc7 {[%emt 0:00:48]} 26. f4 {[%emt 0:02:23]} Rd8 {[%emt 0:02:51]} 27. Qf3 {[%emt 0:01:55]} Qc2 {[%emt 0:02:46]} 28. a6 {[%emt 0:01:12]} Qb2 {[%emt 0:00:19]} 29. Bc3 {[%emt 0:00:41]} Nxc3 {[%emt 0:00:44]} 30. Qxc3 {[%emt 0:00:03]} Rd1+ {[%emt 0:00:36]} 31. Kh2 {[%emt 0:00:35]} Qxc3 {[%emt 0:00:28]} 32. Nxc3 {[%emt 0:00:47]} Rxa1 {[%emt 0:00:05]} 33. a4 {[%emt 0:02:00]} Bb6 {[%emt 0:01:29]} 34. axb5 {[%emt 0:01:42]} Ra5 {[%emt 0:01:39]} 35. g3 {[%emt 0:01:01]} Bd4 {[%emt 0:01:33]} 36. Ne2 {[%emt 0:01:15]} Ra2 0-1

[Event "47th GRE-chT 2019"]
[Site "Patra"]
[Date "2019.07.02"]
[Round "1.20"]
[White "Papaoulakis, Isidoros"]
[Black "Soukarie, Zorz"]
[Result "1/2-1/2"]
[ECO "A45"]
[WhiteElo "1393"]
[BlackElo "1324"]
[Annotator "NA RC"]
[PlyCount "96"]
[EventDate "2019.07.02"]
[EventCountry "GRE"]
[SourceTitle "playchess.com"]
[Source "ChessBase"]
[SourceQuality "1"]
[TimeControl "5400+30"]

1. d4 {[%emt 0:00:00]} Nf6 {[%emt 0:00:00]} 2. g3 {[%emt 0:00:00]} e6 {[%emt 0:00:24]} 3. Bg2 {[%emt 0:00:01]} d5 {[%emt 0:02:37]} 4. Nf3 {[%emt 0:02:12]} Bd6 {[%emt 0:02:50]} 5. O-O {[%emt 0:01:15]} O-O {[%emt 0:00:25]} 6. b3 {[%emt 0:01:37]} Nbd7 {[%emt 0:04:29]} 7. Bb2 {[%emt 0:03:20]} c6 {[%emt 0:24:06]} 8. c4 {[%emt 0:09:21]} b6 {[%emt 0:02:57]} 9. Nbd2 {[%emt 0:06:57]} Qc7 {[%emt 0:27:01]} 10. Rc1 {[%emt 0:07:00]} Qb8 {[%emt 0:01:20]} 11. Re1 {[%emt 0:04:17]} Bb7 {[%emt 0:00:29]} 12. cxd5 {[%emt 0:04:50]} cxd5 {[%emt 0:00:43]} 13. Qc2 {[%emt 0:02:57]} a5 {[%emt 0:14:26]} 14. a3 {[%emt 0:11:15]} Ra7 {[%emt 0:08:34]} 15. e3 {[%emt 0:04:49]} Rc8 {[%emt 0:03:07]} 16. Qd3 {[%emt 0:05:00]} Ba6 {[%emt 0:00:54]} 17. Rxc8+ {[%emt 0:02:50]} Qxc8 {[%emt 0:00:10]} 18. Qb1 {[%emt 0:00:54]} Qb8 {[%emt 0:03:12]} 19. Qa1 {[%emt 0:03:12]} h6 {[%emt 0:00:53]} 20. Ne5 {[%emt 0:02:05]} Bb7 21. Rc1 {[%emt 0:02:27]} Bxe5 {[%emt 0:00:59]} 22. dxe5 {[%emt 0:00:09]} Ne4 {[%emt 0:00:12]} 23. Nxe4 {[%emt 0:00:51]} dxe4 {[%emt 0:00:05]} 24. Bd4 {[%emt 0:02:26]} Bd5 {[%emt 0:00:28]} 25. Qb1 {[%emt 0:01:36]} Nxe5 {[%emt 0:01:24]} 26. Bxe4 {[%emt 0:03:21]} Nd7 {[%emt 0:00:17]} 27. Bxd5 {[%emt 0:00:37]} exd5 {[%emt 0:00:03]} 28. Rc6 {[%emt 0:01:16]} Rc7 {[%emt 0:00:43]} 29. Qc2 {[%emt 0:00:24]} Rxc6 {[%emt 0:01:04]} 30. Qxc6 {[%emt 0:00:09]} Qa7 {[%emt 0:00:36]} 31. Qxd5 {[%emt 0:00:13]} Qc7 {[%emt 0:00:06]} 32. Qc4 {[%emt 0:02:55]} Qd6 {[%emt 0:00:33]} 33. a4 {[%emt 0:00:55]} Nf6 {[%emt 0:00:35]} 34. Qc8+ {[%emt 0:01:39]} Kh7 {[%emt 0:00:07]} 35. Qf5+ {[%emt 0:00:26]} Kg8 {[%emt 0:00:04]} 36. Bxf6 {[%emt 0:00:45]} gxf6 {[%emt 0:00:04]} 37. Qc8+ {[%emt 0:00:39]} Kg7 {[%emt 0:00:30]} 38. Qc4 {[%emt 0:00:12]} Qd1+ {[%emt 0:01:05]} 39. Kg2 {[%emt 0:00:14]} Qd6 {[%emt 0:00:14]} 40. h3 {[%emt 0:00:00]} Kg8 {[%emt 0:00:00]} 41. e4 {[%emt 0:00:00]} Kg7 {[%emt 0:00:00]} 42. Qd5 {[%emt 0:00:00]} Qc7 {[%emt 0:00:00]} 43. h4 {[%emt 0:00:00]} Kg8 {[%emt 0:00:00]} 44. Qd3 {[%emt 0:00:00]} Qc6 {[%emt 0:00:00]} 45. g4 {[%emt 0:00:00]} Qe6 {[%emt 0:00:00]} 46. Kg3 {[%emt 0:00:00]} Qe5+ {[%emt 0:00:32]} 47. f4 {[%emt 0:00:04]} Qc5 {[%emt 0:00:15]} 48. Qf3 {[%emt 0:01:03]} Kg7 1/2-1/2

[Event "47th GRE-chT 2019"]
[Site "Patra"]
[Date "2019.07.02"]
[Round "1.22"]
[White "Papadopoulos, Georgios"]
[Black "Pavlidis, Antonios"]
[Result "0-1"]
[ECO "E73"]
[WhiteElo "2378"]
[BlackElo "2546"]
[Annotator "ChessBase"]
[PlyCount "56"]
[EventDate "2019.07.02"]
[EventCountry "GRE"]
[SourceTitle "playchess.com"]
[Source "ChessBase"]
[SourceQuality "1"]
[TimeControl "5400+30"]

1. d4 {[%emt 0:00:00]} Nf6 {[%emt 0:00:00]} 2. c4 {[%emt 0:00:00]} g6 {[%emt 0:00:00]} 3. Nc3 {[%emt 0:00:00]} Bg7 {[%emt 0:00:00]} 4. e4 {[%emt 0:00:00]} d6 {[%emt 0:00:00]} 5. Be2 {[%emt 0:00:10]} O-O {[%emt 0:00:00]} 6. Be3 {[%emt 0:00:11]} Nc6 {[%emt 0:00:00]} 7. d5 {[%emt 0:00:05]} Ne5 {[%emt 0:00:00]} 8. f4 {[%emt 0:00:10]} Neg4 {[%emt 0:00:21]} 9. Bd2 {[%emt 0:00:14]} Nh6 {[%emt 0:04:51]} 10. h3 {[%emt 0:01:33]} e6 {[%emt 0:09:14]} 11. dxe6 {[%emt 0:00:23]} fxe6 {[%emt 0:02:16]} 12. g4 {[%emt 0:01:15]} b5 {[%emt 0:18:23]} 13. cxb5 {[%emt 0:06:48]} Bb7 {[%emt 0:11:56]} 14. Qb3 {[%emt 0:02:37]} Nd7 {[%emt 0:13:22]} 15. g5 {[%emt 0:06:43]} Nc5 {[%emt 0:10:43]} 16. Qc4 {[%emt 0:02:39]} Bxc3 {[%emt 0:10:11]} 17. bxc3 {[%emt 0:00:13]} Bxe4 {[%emt 0:02:09]} 18. Nf3 {[%emt 0:00:43]} Nf5 {[%emt 0:03:21]} 19. Kd1 {[%emt 0:04:18]} a5 {[%emt 0:02:33]} 20. bxa6 {[%emt 0:00:22]} Rb8 {[%emt 0:01:13]} 21. a7 {[%emt 0:00:02]} Rb6 {[%emt 0:03:20]} 22. Nd4 {[%emt 0:11:54]} Bd5 {[%emt 0:01:34]} 23. Nxf5 {[%emt 0:00:10]} Rxf5 {[%emt 0:00:23]} 24. Qd4 {[%emt 0:00:04]} Bxh1 {[%emt 0:00:23]} 25. c4 {[%emt 0:06:14]} Qa8 {[%emt 0:02:18]} 26. Bg4 {[%emt 0:05:29]} Bf3+ {[%emt 0:00:18]} 27. Kc1 {[%emt 0:01:55]} Bxg4 {[%emt 0:00:02]} 28. hxg4 {[%emt 0:00:11]} e5 {[%emt 0:03:39]} 0-1